fUSD/lending_fUSD_20260507
["ID","MTS","AMOUNT","RATE_DAILY","PERIOD"]
[421791545,1778161846000,-2102.4685502,0.00037311,2]
[421791552,1778161861000,2500.0,0.00026676,120]
[421791551,1778161861000,2500.0,0.00026244,120]
[421791550,1778161861000,2500.0,0.00028709,120]
[421791554,1778161862000,2500.0,0.00026676,120]
[421791553,1778161862000,2500.0,0.00026676,120]
[421791555,1778161864000,616.02770273,0.00028709,120]
[421791557,1778161921000,2500.0,0.00028709,120]
[421791558,1778161921000,2500.0,0.00026107,120]
[421791561,1778161921000,2500.0,0.0002629,120]
[421791560,1778161921000,2500.0,0.0002629,120]
[421791559,1778161921000,2500.0,0.0002629,120]
[421791566,1778161981000,2500.0,0.000261,120]
[421791565,1778161981000,2500.0,0.000261,120]
[421791564,1778161981000,2500.0,0.000261,120]
[421791563,1778161981000,2500.0,0.00026099,120]
[421791562,1778161981000,2500.0,0.00028709,120]
[421791568,1778162041000,1417.22148266,0.00026099,120]
[421791567,1778162041000,2500.0,0.00028709,120]
[421791569,1778162182000,1000.0,0.00022,30]
[421791578,1778162280000,47777.0,0.000299,120]
[421791579,1778162320000,156.22,0.00011119,2]
[421791581,1778162442000,170.0,0.0003,120]
[421791583,1778162645000,1875.31978506,0.00011,2]
[421791584,1778162655000,1000.0,0.0003013,120]
[421791586,1778162701000,172.26154201,0.0001194,2]
[421791587,1778162702000,172.26154201,0.0001194,2]
[421791593,1778162726000,10000.01,0.000107,2]
[421791592,1778162726000,7623.94713092,0.000107,2]
[421791595,1778162727000,10000.01,0.000107,2]
[421791594,1778162727000,10000.01,0.000107,2]
[421791596,1778162727000,10000.01,0.000107,2]
[421791601,1778162727000,10000.01,0.000107,2]
[421791598,1778162727000,10000.01,0.000107,2]
[421791600,1778162727000,10000.01,0.000107,2]
[421791599,1778162727000,10000.01,0.000107,2]
[421791597,1778162727000,10000.01,0.000107,2]
[421791604,1778162964000,1000.0,0.0003013,120]
[421791603,1778162964000,1000.0,0.0003013,120]
[421791606,1778162966000,1000.0,0.00030137,120]
[421791605,1778162966000,1000.0,0.00030137,120]
[421791607,1778163028000,988.11,0.00030137,120]
[421791610,1778163031000,-500.0,0.00010699,2]
[421791612,1778163031000,-500.0,0.00010699,2]
[421791611,1778163031000,-500.0,0.00010699,2]
[421791613,1778163031000,-500.0,0.00010699,2]
[421791615,1778163031000,-358.07311949,0.00010699,2]
[421791614,1778163031000,-500.0,0.00010699,2]
[421791630,1778163032000,-197.04234201,0.00010699,2]
[421791634,1778163032000,-500.0,0.00010699,2]
[421791629,1778163032000,-302.95765799,0.00010699,2]
[421791627,1778163032000,-500.0,0.00010699,2]
[421791637,1778163032000,-233.54808641,0.00010699,2]
[421791631,1778163032000,-500.0,0.00010699,2]
[421791632,1778163032000,-500.0,0.00010699,2]
[421791626,1778163032000,-402.59993454,0.00010699,2]
[421791628,1778163032000,-500.0,0.00010699,2]
[421791624,1778163032000,-310.92688051,0.00010699,2]
[421791621,1778163032000,-500.0,0.00010699,2]
[421791617,1778163032000,-500.0,0.00010699,2]
[421791618,1778163032000,-500.0,0.00010699,2]
[421791623,1778163032000,-189.07311949,0.00010699,2]
[421791622,1778163032000,-500.0,0.00010699,2]
[421791620,1778163032000,-500.0,0.00010699,2]
[421791616,1778163032000,-141.92688051,0.00010699,2]
[421791619,1778163032000,-500.0,0.00010699,2]
[421791636,1778163032000,-500.0,0.00010699,2]
[421791625,1778163032000,-97.40006546,0.00010699,2]
[421791633,1778163032000,-500.0,0.00010699,2]
[421791635,1778163032000,-514.01884555,0.00010699,2]
[421791657,1778163032000,-162834.25814102,0.00012,2]
[421791669,1778163032000,-2539.32212326,0.00012,2]
[421791667,1778163032000,-4200.94834515,0.00012,2]
[421791656,1778163032000,-500.0,0.00011999,2]
[421791639,1778163032000,-4087.20961262,0.000107,2]
[421791655,1778163032000,-170.86775025,0.00011999,2]
[421791665,1778163032000,-882.31924771,0.00012,2]
[421791654,1778163032000,-500.0,0.00011999,2]
[421791659,1778163032000,-3207.38,0.00012,2]
[421791653,1778163032000,-242.85823347,0.00011999,2]
[421791652,1778163032000,-258.09969445,0.0001199,2]
[421791662,1778163032000,-676.9659404,0.00012,2]
[421791641,1778163032000,-205342.94852226,0.000107,2]
[421791638,1778163032000,-500.0,0.00010699,2]
[421791644,1778163032000,-1400.0,0.000118,4]
[421791640,1778163032000,-314.5847794,0.000107,2]
[421791646,1778163032000,-1900.0,0.000119,4]
[421791650,1778163032000,-1002.4750944,0.00011939,2]
[421791645,1778163032000,-16323.36097462,0.000119,2]
[421791648,1778163032000,-150.0,0.000119,2]
[421791643,1778163032000,-900.0,0.000117,4]
[421791642,1778163032000,-400.0,0.000116,4]
[421791726,1778163038000,-889.97262402,0.00013467,2]
[421791720,1778163038000,-578.81,0.00013111,2]
[421791721,1778163038000,-500.0,0.00013174,2]
[421791722,1778163038000,-16323.3609746,0.00013233,2]
[421791719,1778163038000,-5406.29503469,0.0001305,2]
[421791723,1778163038000,-5769.24588801,0.00013319,2]
[421791728,1778163038000,-150.0,0.00013488,2]
[421791715,1778163038000,-16323.3609746,0.000129,2]
[421791730,1778163038000,-150.0,0.00013488,2]
[421791732,1778163038000,-150.00000001,0.00013488,2]
[421791727,1778163038000,-176.34,0.00013477,2]
[421791731,1778163038000,-150.0,0.00013488,2]
[421791735,1778163038000,-250.23673418,0.00013488,2]
[421791736,1778163038000,-150.0,0.00013488,2]
[421791729,1778163038000,-150.0,0.00013488,2]
[421791717,1778163038000,-5769.24588801,0.00012924,2]
[421791708,1778163038000,-5769.24588804,0.00012133,2]
[421791718,1778163038000,-5668.15398274,0.00013,2]
[421791724,1778163038000,-208.98,0.00013322,2]
[421791716,1778163038000,-500.0,0.000129,2]
[421791714,1778163038000,-231.22,0.000126,2]
[421791713,1778163038000,-16323.3609746,0.00012567,2]
[421791712,1778163038000,-5769.24588801,0.00012528,2]
[421791710,1778163038000,-156.22,0.00012509,2]
[421791711,1778163038000,-316.88820569,0.00012509,2]
[421791733,1778163038000,-150.0,0.00013488,2]
[421791709,1778163038000,-16323.3609746,0.00012233,2]
[421791706,1778163038000,-2282208.39329336,0.00012,2]
[421791707,1778163038000,-889.97262402,0.00012033,2]
[421791704,1778163038000,-75483.44607734,0.00012,2]
[421791705,1778163038000,-372.73608226,0.00012,2]
[421791725,1778163038000,-500.0,0.00013448,2]
[421791737,1778163038000,-150.59647612,0.00013488,2]
[421791734,1778163038000,-150.00000001,0.00013488,2]
[421791738,1778163038000,-150.0,0.00013488,2]
[421791762,1778163038000,-150.0,0.00013987,2]
[421791759,1778163038000,-150.0,0.00013916,2]
[421791760,1778163038000,-150.0,0.00013956,2]
[421791761,1778163038000,-166.66,0.00013973,2]
[421791757,1778163038000,-156.22,0.00013898,2]
[421791775,1778163038000,-150.0,0.00014033,2]
[421791751,1778163038000,-150.0,0.00013769,2]
[421791777,1778163038000,-150.0,0.0001405,2]
[421791769,1778163038000,-8956.08444381,0.00014,2]
[421791765,1778163038000,-12014.61704422,0.0001399,2]
[421791773,1778163038000,-506.0086978,0.00014,2]
[421791739,1778163038000,-150.0,0.00013488,2]
[421791767,1778163038000,-500.0,0.00013996,2]
[421791771,1778163038000,-250.0,0.00014,2]
[421791763,1778163038000,-150.0,0.00013987,2]
[421791758,1778163038000,-16323.3609746,0.000139,2]
[421791778,1778163038000,-5769.24588801,0.00014109,2]
[421791756,1778163038000,-150.0,0.00013896,2]
[421791755,1778163038000,-150.0,0.00013862,2]
[421791749,1778163038000,-150.0,0.00013737,2]
[421791740,1778163038000,-16323.3609746,0.00013567,2]
[421791746,1778163038000,-150.0,0.00013702,2]
[421791742,1778163038000,-150.0,0.00013624,2]
[421791748,1778163038000,-500.0,0.00013722,2]
[421791743,1778163038000,-150.0,0.00013654,2]
[421791741,1778163038000,-150.0,0.00013581,2]
[421791744,1778163038000,-150.0,0.00013675,2]
[421791745,1778163038000,-166.66,0.00013699,2]
[421791750,1778163038000,-150.0,0.0001376,2]
[421791753,1778163038000,-166.66,0.00013836,2]
[421791754,1778163038000,-150.0,0.00013862,2]
[421791747,1778163038000,-5769.24588801,0.00013714,2]
[421791752,1778163038000,-150.0,0.00013821,2]
[421791846,1778163039000,-150.0,0.00014772,2]
[421791839,1778163039000,-150.0,0.00014714,2]
[421791837,1778163039000,-150.0,0.00014705,2]
[421791842,1778163039000,-150.0,0.00014737,2]
[421791833,1778163039000,-1000.0,0.00014662,2]
[421791830,1778163039000,-150.0,0.00014653,2]
[421791831,1778163039000,-499.53639878,0.00014662,2]
[421791828,1778163039000,-152.87,0.00014622,2]
[421791820,1778163039000,-16323.3609746,0.00014567,2]
[421791844,1778163039000,-578.81,0.0001475,2]
[421791826,1778163039000,-150.0,0.00014612,2]
[421791835,1778163039000,-2400.0,0.000147,5]
[421791858,1778163039000,-150.0,0.0001485,2]
[421791864,1778163039000,-42576.0076,0.000149,2]
[421791856,1778163039000,-172.26154201,0.00014826,2]
[421791848,1778163039000,-150.0,0.00014799,2]
[421791852,1778163039000,-302.98193432,0.00014818,2]
[421791860,1778163039000,-150.0,0.00014893,2]
[421791850,1778163039000,-400.0,0.000148,5]
[421791862,1778163039000,-714.6271,0.000149,2]
[421791866,1778163039000,-5000.0,0.000149,2]
[421791868,1778163039000,-400.0,0.000149,5]
[421791872,1778163039000,-889.97262402,0.000149,2]
[421791870,1778163039000,-16323.3609746,0.000149,2]
[421791886,1778163039000,-152.91310528,0.00014986,2]
[421791894,1778163039000,-180.55235633,0.00014986,2]
[421791823,1778163039000,-150.0,0.00014612,2]
[421791854,1778163039000,-150.0,0.0001482,2]
[421791822,1778163039000,-150.0,0.00014578,2]
[421791875,1778163039000,-172.26154201,0.00014925,2]
[421791814,1778163039000,-150.0,0.00014518,2]
[421791779,1778163039000,-166.66,0.0001411,2]
[421791781,1778163039000,-246.25959459,0.00014114,2]
[421791780,1778163039000,-500.0,0.00014114,2]
[421791782,1778163039000,-500.0,0.00014114,2]
[421791783,1778163039000,-150.0,0.0001413,2]
[421791785,1778163039000,-150.0,0.00014154,2]
[421791792,1778163039000,-166.66,0.00014247,2]
[421791788,1778163039000,-16323.3609746,0.00014233,2]
[421791787,1778163039000,-176.34,0.00014218,2]
[421791793,1778163039000,-500.0,0.0001427,2]
[421791789,1778163039000,-150.0,0.00014237,2]
[421791791,1778163039000,-150.0,0.00014237,2]
[421791786,1778163039000,-150.0,0.00014169,2]
[421791784,1778163039000,-150.0,0.00014143,2]
[421791795,1778163039000,-150.0,0.0001432,2]
[421791794,1778163039000,-150.0,0.00014305,2]
[421791790,1778163039000,-150.0,0.00014237,2]
[421791800,1778163039000,-10440.09389244,0.0001439,2]
[421791802,1778163039000,-150.0,0.00014424,2]
[421791796,1778163039000,-150.0,0.00014331,2]
[421791798,1778163039000,-150.0,0.00014344,2]
[421791804,1778163039000,-150.0,0.00014441,2]
[421791806,1778163039000,-5016.16587604,0.00014485,2]
[421791810,1778163039000,-150.0,0.00014487,2]
[421791808,1778163039000,-150.0,0.00014487,2]
[421791812,1778163039000,-5769.24588801,0.00014505,2]
[421791816,1778163039000,-500.0,0.00014544,2]
[421791818,1778163039000,-150.0,0.00014558,2]
[421791877,1778163039000,-172.26154201,0.00014925,2]
[421791879,1778163039000,-176.34,0.0001496,2]
[421791891,1778163039000,-150.0,0.00014986,2]
[421791945,1778163039000,-408.0,0.00020009,2]
[421791943,1778163039000,-410.0,0.00020001,2]
[421791936,1778163039000,-7156.21,0.0002,2]
[421791944,1778163039000,-412.0,0.00020003,2]
[421791939,1778163039000,-407.0,0.0002,2]
[421791938,1778163039000,-405.0,0.0002,2]
[421791940,1778163039000,-405.0,0.0002,2]
[421791942,1778163039000,-409.0,0.0002,2]
[421791941,1778163039000,-398.0,0.0002,2]
[421791946,1778163039000,-402.0,0.00020027,2]
[421791947,1778163039000,-411.0,0.00020083,2]
[421791948,1778163039000,-410.0,0.00020256,2]
[421791950,1778163039000,-412.0,0.00020564,2]
[421791949,1778163039000,-404.0,0.00020381,2]
[421791955,1778163039000,-238.0,0.00021,2]
[421791951,1778163039000,-402.0,0.00020842,2]
[421791957,1778163039000,-300.0,0.00021222,2]
[421791958,1778163039000,-2829.81285236,0.00021402,2]
[421791952,1778163039000,-156.22,0.00020848,2]
[421791954,1778163039000,-252.0,0.00021,2]
[421791953,1778163039000,-198.0,0.00021,2]
[421791960,1778163039000,-11889.06004923,0.00021402,2]
[421791959,1778163039000,-2816.15708596,0.00021402,2]
[421791961,1778163039000,-665.32180989,0.00021402,2]
[421791964,1778163039000,-1149.37507846,0.0002156,5]
[421791963,1778163039000,-1032.22171529,0.0002156,5]
[421791889,1778163039000,-150.0,0.00014986,2]
[421791937,1778163039000,-403.0,0.0002,2]
[421791933,1778163039000,-198.0,0.0002,2]
[421791956,1778163039000,-200.0,0.00021222,2]
[421791935,1778163039000,-238.0,0.0002,2]
[421791934,1778163039000,-252.0,0.0002,2]
[421791873,1778163039000,-5769.24588801,0.000149,2]
[421791882,1778163039000,-500.0,0.00014973,2]
[421791884,1778163039000,-150.00000001,0.00014986,2]
[421791888,1778163039000,-151.87006581,0.00014986,2]
[421791962,1778163039000,-1122.75079537,0.0002156,5]
[421791903,1778163039000,-258.09969445,0.0001499,2]
[421791897,1778163039000,-158.45897906,0.00014986,2]
[421791909,1778163039000,-2502.93493034,0.00015,14]
[421791901,1778163039000,-258.09969445,0.0001499,2]
[421791905,1778163039000,-309.34908217,0.00014999,2]
[421791907,1778163039000,-8193688.48026784,0.00015,2]
[421791899,1778163039000,-64210.11156331,0.00014989,2]
[421791895,1778163039000,-150.0,0.00014986,2]
[421791913,1778163039000,-1500.0,0.0001521,2]
[421791932,1778163039000,-208.98,0.00019983,2]
[421791911,1778163039000,-476.44,0.00015,2]
[421791925,1778163039000,-983.7392912,0.00015758,2]
[421791929,1778163039000,-156.22,0.00018068,2]
[421791927,1778163039000,-156.22,0.00016678,2]
[421791921,1778163039000,-502.50768999,0.00015521,2]
[421791931,1778163039000,-578.81,0.00019666,2]
[421791928,1778163039000,-578.81,0.00018027,2]
[421791930,1778163039000,-156.22,0.00019458,2]
[421791923,1778163039000,-176.34,0.00015701,2]
[421791919,1778163039000,-391.4818038,0.00015373,3]
[421791915,1778163039000,-156.22,0.00015288,2]
[421791926,1778163039000,-578.81,0.00016389,2]
[421791988,1778163040000,-151.0,0.00023942,2]
[421791985,1778163040000,-222.298615,0.00023942,2]
[421791993,1778163040000,-252.0,0.00024,2]
[421791986,1778163040000,-222.298615,0.00023942,2]
[421791987,1778163040000,-151.0,0.00023942,2]
[421791990,1778163040000,-151.0,0.00023942,2]
[421791989,1778163040000,-151.0,0.00023942,2]
[421791996,1778163040000,-151.0,0.00024324,2]
[421792002,1778163040000,-156.83,0.0002498,7]
[421791995,1778163040000,-511.03,0.00024011,2]
[421791998,1778163040000,-476.44,0.000246,7]
[421792000,1778163040000,-156.83,0.00024658,2]
[421791999,1778163040000,-1000.0,0.00024658,2]
[421792005,1778163040000,-245.0,0.00025,2]
[421792001,1778163040000,-172.51,0.00024658,2]
[421791992,1778163040000,-198.0,0.00024,2]
[421792004,1778163040000,-255.0,0.00025,2]
[421791997,1778163040000,-511.03,0.00024596,2]
[421791984,1778163040000,-222.298615,0.00023942,2]
[421791974,1778163040000,-238.0,0.00023,2]
[421791982,1778163040000,-151.0,0.00023942,2]
[421792003,1778163040000,-214.0,0.00025,2]
[421791969,1778163040000,-238.0,0.00022,2]
[421791966,1778163040000,-5000.0,0.00021918,2]
[421791968,1778163040000,-252.0,0.00022,2]
[421791965,1778163040000,-476.44,0.000216,2]
[421791970,1778163040000,-156.22,0.00022237,2]
[421791973,1778163040000,-252.0,0.00023,2]
[421791976,1778163040000,-3626.0,0.00023723,2]
[421791994,1778163040000,-238.0,0.00024,2]
[421791975,1778163040000,-511.03,0.00023425,2]
[421791971,1778163040000,-151.0,0.00022353,2]
[421791980,1778163040000,-321063.38773907,0.00023942,2]
[421791978,1778163040000,-400.0,0.000239,8]
[421791979,1778163040000,-2178936.61226093,0.00023942,2]
[421791977,1778163040000,-928.0,0.00023723,2]
[421791972,1778163040000,-198.0,0.00023,2]
[421791983,1778163040000,-222.298615,0.00023942,2]
[421791991,1778163040000,-151.0,0.00023942,2]
[421791981,1778163040000,-151.0,0.00023942,2]
[421792009,1778163040000,-355.58610813,0.00025496,2]
[421791967,1778163040000,-198.0,0.00022,2]
[421792008,1778163040000,-156.83,0.00025302,30]
[421792040,1778163040000,-1290.08569442,0.00026578,2]
[421792041,1778163040000,-3460.0,0.00026578,2]
[421792031,1778163040000,-150.0,0.00026115,2]
[421792035,1778163040000,-156.33,0.00026269,30]
[421792034,1778163040000,-151.0,0.00026171,2]
[421792039,1778163040000,-798159.11832811,0.00026578,2]
[421792036,1778163040000,-156.83,0.00026269,30]
[421792037,1778163040000,-151.0,0.00026296,2]
[421792032,1778163040000,-150.0,0.00026115,2]
[421792038,1778163040000,-476.44,0.000263,7]
[421792046,1778163040000,-482.382,0.00026578,2]
[421792045,1778163040000,-767.54052114,0.00026578,2]
[421792042,1778163040000,-26403.79226853,0.00026578,2]
[421792044,1778163040000,-332.32604513,0.00026578,2]
[421792047,1778163040000,-198352.58916491,0.00026578,2]
[421792048,1778163040000,-774.295,0.00026578,2]
[421792049,1778163040000,-1188.44991006,0.00026578,2]
[421792006,1778163040000,-511.03,0.00025182,2]
[421792043,1778163040000,-380.52932165,0.00026578,2]
[421792027,1778163040000,-151.0,0.000261,2]
[421792033,1778163040000,-150.0,0.00026171,2]
[421792025,1778163040000,-151.0,0.00026099,2]
[421792007,1778163040000,-156.33,0.00025302,30]
[421792013,1778163040000,-172.51,0.00025753,7]
[421792011,1778163040000,-156.33,0.00025624,2]
[421792010,1778163040000,-409.0,0.000255,2]
[421792028,1778163040000,-399.0,0.000261,2]
[421792014,1778163040000,-511.03,0.00025768,2]
[421792012,1778163040000,-156.83,0.00025624,2]
[421792015,1778163040000,-156.33,0.00025947,7]
[421792016,1778163040000,-156.83,0.00025947,7]
[421792018,1778163040000,-404.0,0.00026099,2]
[421792017,1778163040000,-411.0,0.00026099,2]
[421792030,1778163040000,-151.0,0.00026103,2]
[421792020,1778163040000,-409.0,0.00026099,2]
[421792029,1778163040000,-150.0,0.00026103,2]
[421792021,1778163040000,-403.0,0.00026099,2]
[421792026,1778163040000,-401.0,0.00026099,2]
[421792023,1778163040000,-151.0,0.00026099,2]
[421792022,1778163040000,-412.0,0.00026099,2]
[421792024,1778163040000,-252.77109638,0.00026099,2]
[421792019,1778163040000,-202.98395705,0.00026099,2]
[421792066,1778163043000,-0.18304563,0.00023303,2]
[421792072,1778163046000,-214.45689113,0.00023303,2]
[421792074,1778163046000,-13462.47866446,0.00026578,2]
[421792075,1778163046000,-1606.0977084,0.00026578,2]
[421792077,1778163046000,-351.714966,0.00026578,2]
[421792076,1778163046000,-8754.18294694,0.00026578,2]
[421792078,1778163046000,-737.18575986,0.00026578,2]
[421792079,1778163046000,-1465.85901314,0.00026578,2]
[421792073,1778163046000,-417.0,0.00023729,2]
[421792096,1778163093000,2000.0,0.00030137,120]
[421792097,1778163138000,500.0,0.00010699,2]
[421792098,1778163138000,500.0,0.00010699,2]
[421792099,1778163138000,500.0,0.00010699,2]
[421792100,1778163138000,500.0,0.00010699,2]
[421792101,1778163138000,245.34788456,0.00010699,2]
[421792102,1778163312000,1000.0,0.0003013,120]
[421792103,1778163321000,1000.0,0.0003013,120]
[421792104,1778163329000,1000.0,0.0003013,120]
[421792105,1778163336000,1000.0,0.0003013,120]
[421792106,1778163347000,501.69944493,0.00030121,120]
[421792107,1778163363000,1000.0,0.0003013,120]
[421792108,1778163423000,1000.0,0.0003013,120]
[421792125,1778163444000,168.0,0.00011943,2]
[421792126,1778163499000,717.25,0.0003013,120]
[421792127,1778163510000,1000.0,0.0003013,120]
[421792128,1778163538000,1000.0,0.0003013,120]
[421792130,1778163704000,1000.0,0.0003013,120]
[421792166,1778164232000,-3110.08,0.00022409,2]
[421792160,1778164232000,-426.27505228,0.00022096,2]
[421792158,1778164232000,-369.0,0.00022,2]
[421792162,1778164232000,-818.26,0.00022182,2]
[421792159,1778164232000,-230.0,0.00022,2]
[421792163,1778164232000,-150.0,0.00022205,2]
[421792169,1778164232000,-160.0,0.00022679,2]
[421792172,1778164232000,-166.66,0.00022775,30]
[421792175,1778164232000,-369.0,0.00023,2]
[421792176,1778164232000,-230.0,0.00023,2]
[421792168,1778164232000,-200.0,0.00022483,2]
[421792167,1778164232000,-200.0,0.00022423,2]
[421792171,1778164232000,-184.56,0.00022714,2]
[421792165,1778164232000,-151.0,0.00022353,2]
[421792173,1778164232000,-3110.08,0.00022969,2]
[421792174,1778164232000,-328.0,0.00023,2]
[421792170,1778164232000,-214.63993676,0.00022679,2]
[421792161,1778164232000,-373.72494772,0.00022096,2]
[421792151,1778164232000,-369.0,0.00021,2]
[421792155,1778164232000,-222.90757065,0.00021998,2]
[421792139,1778164232000,-296.87862932,0.00014761,2]
[421792142,1778164232000,-8.09984508,0.0002,2]
[421792141,1778164232000,-153.92,0.00018495,2]
[421792140,1778164232000,-151.0,0.0001841,2]
[421792143,1778164232000,-319.90015492,0.0002,2]
[421792144,1778164232000,-369.0,0.0002,2]
[421792145,1778164232000,-230.0,0.0002,2]
[421792147,1778164232000,-268.66984508,0.00020602,2]
[421792156,1778164232000,-167.46514866,0.00022,2]
[421792148,1778164232000,-130.33015492,0.00020602,2]
[421792152,1778164232000,-230.0,0.00021,2]
[421792149,1778164232000,-500.0,0.00020685,2]
[421792150,1778164232000,-328.0,0.00021,2]
[421792178,1778164232000,-166.66,0.00023245,30]
[421792154,1778164232000,-224.09242935,0.00021998,2]
[421792164,1778164232000,-166.66,0.00022306,30]
[421792153,1778164232000,-390.37,0.00021918,5]
[421792157,1778164232000,-160.53485134,0.00022,2]
[421792146,1778164232000,-151.0,0.00020381,2]
[421792184,1778164232000,-8673.61461635,0.00023764,2]
[421792201,1778164232000,-500.0,0.0002385,2]
[421792186,1778164232000,-433.51134911,0.00023764,2]
[421792212,1778164232000,-151.0,0.0002385,2]
[421792211,1778164232000,-621.25589089,0.0002385,2]
[421792213,1778164232000,-167.15,0.00023858,2]
[421792202,1778164232000,-151.0,0.0002385,2]
[421792209,1778164232000,-500.0,0.0002385,2]
[421792204,1778164232000,-151.0,0.0002385,2]
[421792205,1778164232000,-500.0,0.0002385,2]
[421792208,1778164232000,-151.0,0.0002385,2]
[421792210,1778164232000,-151.0,0.0002385,2]
[421792207,1778164232000,-500.0,0.0002385,2]
[421792216,1778164232000,-335.31,0.00023864,2]
[421792217,1778164232000,-427.7070206,0.00023864,2]
[421792185,1778164232000,-6562.40426278,0.00023764,2]
[421792219,1778164232000,-1050.0,0.00023864,2]
[421792214,1778164232000,-150.0,0.00023858,2]
[421792218,1778164232000,-1728.70844309,0.00023864,2]
[421792220,1778164232000,-1623.11679656,0.00023864,2]
[421792206,1778164232000,-151.0,0.0002385,2]
[421792203,1778164232000,-500.0,0.0002385,2]
[421792215,1778164232000,-17081.89905567,0.00023864,2]
[421792199,1778164232000,-500.0,0.0002385,2]
[421792187,1778164232000,-16575.02703766,0.00023764,2]
[421792189,1778164232000,-5000.0,0.00023764,2]
[421792177,1778164232000,-255.0,0.00023,2]
[421792188,1778164232000,-2500.0,0.00023764,2]
[421792179,1778164232000,-200.0,0.000235,8]
[421792182,1778164232000,-600.0,0.000237,8]
[421792180,1778164232000,-3110.08,0.00023529,2]
[421792183,1778164232000,-166.66,0.00023715,30]
[421792181,1778164232000,-400.0,0.000236,8]
[421792192,1778164232000,-200.0,0.0002385,2]
[421792193,1778164232000,-151.0,0.0002385,2]
[421792198,1778164232000,-151.0,0.0002385,2]
[421792196,1778164232000,-151.0,0.0002385,2]
[421792197,1778164232000,-500.0,0.0002385,2]
[421792200,1778164232000,-151.0,0.0002385,2]
[421792195,1778164232000,-151.0,0.0002385,2]
[421792191,1778164232000,-800.0,0.000238,8]
[421792190,1778164232000,-1006.336,0.00023799,5]
[421792194,1778164232000,-500.0,0.0002385,2]
[421792247,1778164238000,-1477753.25868408,0.00023864,2]
[421792245,1778164238000,-2098.806145,0.00023764,2]
[421792248,1778164238000,-705430.40972185,0.00023864,2]
[421792246,1778164238000,-2901.193855,0.00023764,2]
[421792249,1778164238000,-1153947.74676859,0.00023864,2]
[421792250,1778164238000,-326.09927791,0.00023864,2]
[421792252,1778164238000,-400.0,0.00023864,2]
[421792255,1778164238000,-380.52932165,0.00023864,2]
[421792253,1778164238000,-1101.0,0.00023864,2]
[421792254,1778164238000,-26403.79226853,0.00023864,2]
[421792251,1778164238000,-1503.17647077,0.00023864,2]
[421792347,1778164240000,-26069.82147644,0.00023864,2]
[421792345,1778164240000,-2090.40897658,0.00023864,2]
[421792346,1778164240000,-745.5920093,0.00023864,2]
[421792360,1778164246000,-3125.77492226,0.00023664,2]
[421792359,1778164246000,-5680.3647,0.00023664,2]
[421792358,1778164246000,-410.19486052,0.00023664,2]
[421792357,1778164246000,-2265.73672075,0.00023664,2]
[421792417,1778164249000,-226404.65788415,0.00023664,2]
[421792418,1778164249000,-4886.90438123,0.00023664,2]
[421792420,1778164249000,-16184.24066084,0.00023664,2]
[421792416,1778164249000,-11679.81651685,0.00023664,2]
[421792419,1778164249000,-11322.96478012,0.00023664,2]
[421792421,1778164250000,-28023.74913751,0.00023664,2]
[421792521,1778165366000,19988.0,0.00030136,120]